Workbook

Sheet Sheet1
B1: 附件
A2: 黎平县2023年“特岗计划” 教师招聘总成绩排名及入围体检人员名单
A3: 序号 | B3: 姓名 | C3: 面试 准考证号 | D3: 学段 | E3: 学科 | F3: 笔试 成绩 | G3: 笔试成绩所占比例 | H3: 面试 成绩 | I3: 面试成绩所占比例 | J3: 考试总成绩 | K3: 本职位排名 | L3: 是否入围体检 | M3: 备注
A4: 1 | B4: 吴倩 | C4: 2331020102A01 | D4: 小学 | E4: 语文 | F4: 84 | G4: 50% | H4: 85 | I4: 50% | J4: =F4*G4+H4*I4 -> 84.50 | K4: =RANK(J4,$J$4:$J$81) -> 1 | L4: 是
A5: 2 | B5: 陈卫 | C5: 2331020102A02 | D5: 小学 | E5: 语文 | F5: 76 | G5: 50% | H5: 84.67 | I5: 50% | J5: 80.34 | K5: =RANK(J5,$J$4:$J$81) -> 2 | L5: 是
A6: 3 | B6: 伍美林 | C6: 2331020102A03 | D6: 小学 | E6: 语文 | F6: 74 | G6: 50% | H6: 85.67 | I6: 50% | J6: 79.84 | K6: 3 | L6: 是
A7: 4 | B7: 欧嫚 | C7: 2331020102A08 | D7: 小学 | E7: 语文 | F7: 72 | G7: 50% | H7: 86.67 | I7: 50% | J7: 79.34 | K7: 4 | L7: 是
A8: 5 | B8: 杨静 | C8: 2331020102A12 | D8: 小学 | E8: 语文 | F8: 70.5 | G8: 50% | H8: 85.67 | I8: 50% | J8: 78.09 | K8: 5 | L8: 是
A9: 6 | B9: 陈喜 | C9: 2331020102A10 | D9: 小学 | E9: 语文 | F9: 72 | G9: 50% | H9: 84 | I9: 50% | J9: 78.00 | K9: 6 | L9: 是
A10: 7 | B10: 欧玉蓉 | C10: 2331020102A07 | D10: 小学 | E10: 语文 | F10: 72.5 | G10: 50% | H10: 83 | I10: 50% | J10: 77.75 | K10: 7 | L10: 是
A11: 8 | B11: 吴优 | C11: 2331020102A09 | D11: 小学 | E11: 语文 | F11: 72 | G11: 50% | H11: 83.33 | I11: 50% | J11: 77.67 | K11: 8 | L11: 是
A12: 9 | B12: 祖福祝 | C12: 2331020102A06 | D12: 小学 | E12: 语文 | F12: 72.5 | G12: 50% | H12: 82.67 | I12: 50% | J12: 77.59 | K12: 9 | L12: 是
A13: 10 | B13: 赵香凤 | C13: 2331020102A22 | D13: 小学 | E13: 语文 | F13: 68.5 | G13: 50% | H13: 86.67 | I13: 50% | J13: 77.59 | K13: 9 | L13: 是
A14: 11 | B14: 龙书燕 | C14: 2331020102A24 | D14: 小学 | E14: 语文 | F14: 68.5 | G14: 50% | H14: 86.33 | I14: 50% | J14: 77.42 | K14: 11 | L14: 是
A15: 12 | B15: 张悦 | C15: 2331020102A28 | D15: 小学 | E15: 语文 | F15: 67.5 | G15: 50% | H15: 87.33 | I15: 50% | J15: 77.42 | K15: 11 | L15: 是
A16: 13 | B16: 代亚琴 | C16: 2331020102A04 | D16: 小学 | E16: 语文 | F16: 73 | G16: 50% | H16: 81 | I16: 50% | J16: 77.00 | K16: 13 | L16: 是
A17: 14 | B17: 郑红 | C17: 2331020102A37 | D17: 小学 | E17: 语文 | F17: 67 | G17: 50% | H17: 87 | I17: 50% | J17: 77.00 | K17: 13 | L17: 是
A18: 15 | B18: 龙美芬 | C18: 2331020102A29 | D18: 小学 | E18: 语文 | F18: 67.5 | G18: 50% | H18: 86.33 | I18: 50% | J18: 76.92 | K18: 15 | L18: 是
A19: 16 | B19: 石苏娟 | C19: 2331020102A13 | D19: 小学 | E19: 语文 | F19: 70 | G19: 50% | H19: 83.67 | I19: 50% | J19: 76.84 | K19: 16 | L19: 是
A20: 17 | B20: 姜满英 | C20: 2331020102A38 | D20: 小学 | E20: 语文 | F20: 66.5 | G20: 50% | H20: 87 | I20: 50% | J20: 76.75 | K20: 17 | L20: 是
A21: 18 | B21: 石联英 | C21: 2331020102A25 | D21: 小学 | E21: 语文 | F21: 68.5 | G21: 50% | H21: 84.33 | I21: 50% | J21: 76.42 | K21: 18 | L21: 是
A22: 19 | B22: 杨韵 | C22: 2331020102A43 | D22: 小学 | E22: 语文 | F22: 66.5 | G22: 50% | H22: 86.33 | I22: 50% | J22: 76.42 | K22: 18 | L22: 是
A23: 20 | B23: 赵春姝 | C23: 2331020102A11 | D23: 小学 | E23: 语文 | F23: 72 | G23: 50% | H23: 80.67 | I23: 50% | J23: 76.34 | K23: 20 | L23: 是
A24: 21 | B24: 潘盛柳 | C24: 2331020102A14 | D24: 小学 | E24: 语文 | F24: 70 | G24: 50% | H24: 82.67 | I24: 50% | J24: 76.34 | K24: 20 | L24: 是
A25: 22 | B25: 赵婷 | C25: 2331020102A34 | D25: 小学 | E25: 语文 | F25: 67 | G25: 50% | H25: 85.33 | I25: 50% | J25: 76.17 | K25: 22 | L25: 是
A26: 23 | B26: 杨予知 | C26: 2331020102A21 | D26: 小学 | E26: 语文 | F26: 69 | G26: 50% | H26: 83 | I26: 50% | J26: 76.00 | K26: 23 | L26: 是
A27: 24 | B27: 梁慧敏 | C27: 2331020102A35 | D27: 小学 | E27: 语文 | F27: 67 | G27: 50% | H27: 85 | I27: 50% | J27: 76.00 | K27: 23 | L27: 是
A28: 25 | B28: 袁柳单 | C28: 2331020102A32 | D28: 小学 | E28: 语文 | F28: 67 | G28: 50% | H28: 84.67 | I28: 50% | J28: 75.84 | K28: 25 | L28: 否
A29: 26 | B29: 陈静 | C29: 2331020102A23 | D29: 小学 | E29: 语文 | F29: 68.5 | G29: 50% | H29: 83 | I29: 50% | J29: 75.75 | K29: 26 | L29: 否
A30: 27 | B30: 刘维曦 | C30: 2331020102A30 | D30: 小学 | E30: 语文 | F30: 67.5 | G30: 50% | H30: 84 | I30: 50% | J30: 75.75 | K30: 26 | L30: 否
A31: 28 | B31: 吴元梅 | C31: 2331020102A27 | D31: 小学 | E31: 语文 | F31: 68 | G31: 50% | H31: 83 | I31: 50% | J31: 75.50 | K31: 28 | L31: 否
A32: 29 | B32: 姜武云 | C32: 2331020102A39 | D32: 小学 | E32: 语文 | F32: 66.5 | G32: 50% | H32: 84.33 | I32: 50% | J32: 75.42 | K32: 29 | L32: 否
A33: 30 | B33: 孙盼 | C33: 2331020102A52 | D33: 小学 | E33: 语文 | F33: 65.5 | G33: 50% | H33: 85.33 | I33: 50% | J33: 75.42 | K33: 29 | L33: 否
A34: 31 | B34: 张胜琴 | C34: 2331020102A20 | D34: 小学 | E34: 语文 | F34: 69 | G34: 50% | H34: 81.67 | I34: 50% | J34: 75.34 | K34: 31 | L34: 否
A35: 32 | B35: 宋玉琦 | C35: 2331020102A17 | D35: 小学 | E35: 语文 | F35: 69.5 | G35: 50% | H35: 81 | I35: 50% | J35: 75.25 | K35: 32 | L35: 否
A36: 33 | B36: 陈彩双 | C36: 2331020102A05 | D36: 小学 | E36: 语文 | F36: 73 | G36: 50% | H36: 77.33 | I36: 50% | J36: 75.17 | K36: 33 | L36: 否
A37: 34 | B37: 代蓉琳 | C37: 2331020102A18 | D37: 小学 | E37: 语文 | F37: 69 | G37: 50% | H37: 81.33 | I37: 50% | J37: 75.17 | K37: =RANK(J37,$J$4:$J$81) -> 33 | L37: 否
A38: 35 | B38: 肖姗 | C38: 2331020102A15 | D38: 小学 | E38: 语文 | F38: 69.5 | G38: 50% | H38: 80.33 | I38: 50% | J38: 74.92 | K38: 35 | L38: 否
A39: 36 | B39: 杨志文 | C39: 2331020102A16 | D39: 小学 | E39: 语文 | F39: 69.5 | G39: 50% | H39: 80.33 | I39: 50% | J39: 74.92 | K39: 35 | L39: 否
A40: 37 | B40: 李楠 | C40: 2331020102A40 | D40: 小学 | E40: 语文 | F40: 66.5 | G40: 50% | H40: 83.33 | I40: 50% | J40: 74.92 | K40: 35 | L40: 否
A41: 38 | B41: 张小会 | C41: 2331020102A42 | D41: 小学 | E41: 语文 | F41: 66.5 | G41: 50% | H41: 83.33 | I41: 50% | J41: 74.92 | K41: 35 | L41: 否
A42: 39 | B42: 吴建桃 | C42: 2331020102A46 | D42: 小学 | E42: 语文 | F42: 66 | G42: 50% | H42: 83.33 | I42: 50% | J42: 74.67 | K42: 39 | L42: 否
A43: 40 | B43: 杨凡 | C43: 2331020102A58 | D43: 小学 | E43: 语文 | F43: 65 | G43: 50% | H43: 84.33 | I43: 50% | J43: 74.67 | K43: 39 | L43: 否
A44: 41 | B44: 吴陆瑶 | C44: 2331020102A36 | D44: 小学 | E44: 语文 | F44: 67 | G44: 50% | H44: 82 | I44: 50% | J44: 74.50 | K44: 41 | L44: 否
A45: 42 | B45: 曾令甜 | C45: 2331020102A31 | D45: 小学 | E45: 语文 | F45: 67.5 | G45: 50% | H45: 81.33 | I45: 50% | J45: 74.42 | K45: 42 | L45: 否
A46: 43 | B46: 杨云 | C46: 2331020102A19 | D46: 小学 | E46: 语文 | F46: 69 | G46: 50% | H46: 79.67 | I46: 50% | J46: 74.34 | K46: 43 | L46: 否
A47: 44 | B47: 李丹 | C47: 2331020102A33 | D47: 小学 | E47: 语文 | F47: 67 | G47: 50% | H47: 81.67 | I47: 50% | J47: 74.34 | K47: 43 | L47: 否
A48: 45 | B48: 唐秋莲 | C48: 2331020102A62 | D48: 小学 | E48: 语文 | F48: 65 | G48: 50% | H48: 83.67 | I48: 50% | J48: 74.34 | K48: 43 | L48: 否
A49: 46 | B49: 聂巧巧 | C49: 2331020102A64 | D49: 小学 | E49: 语文 | F49: 64 | G49: 50% | H49: 84.67 | I49: 50% | J49: 74.34 | K49: 43 | L49: 否
A50: 47 | B50: 李芬 | C50: 2331020102A48 | D50: 小学 | E50: 语文 | F50: 65.5 | G50: 50% | H50: 83 | I50: 50% | J50: 74.25 | K50: 47 | L50: 否
A51: 48 | B51: 杨芳芳 | C51: 2331020102A44 | D51: 小学 | E51: 语文 | F51: 66 | G51: 50% | H51: 82.33 | I51: 50% | J51: 74.17 | K51: 48 | L51: 否
A52: 49 | B52: 刘玉佩 | C52: 2331020102A66 | D52: 小学 | E52: 语文 | F52: 64 | G52: 50% | H52: 83.67 | I52: 50% | J52: 73.84 | K52: 49 | L52: 否
A53: 50 | B53: 张梅 | C53: 2331020102A26 | D53: 小学 | E53: 语文 | F53: 68 | G53: 50% | H53: 79.33 | I53: 50% | J53: 73.67 | K53: 50 | L53: 否
A54: 51 | B54: 高柳进 | C54: 2331020102A45 | D54: 小学 | E54: 语文 | F54: 66 | G54: 50% | H54: 81 | I54: 50% | J54: 73.50 | K54: 51 | L54: 否
A55: 52 | B55: 吴美蓉 | C55: 2331020102A67 | D55: 小学 | E55: 语文 | F55: 64 | G55: 50% | H55: 83 | I55: 50% | J55: 73.50 | K55: 51 | L55: 否
A56: 53 | B56: 戴丽丽 | C56: 2331020102A50 | D56: 小学 | E56: 语文 | F56: 65.5 | G56: 50% | H56: 81.33 | I56: 50% | J56: 73.42 | K56: 53 | L56: 否
A57: 54 | B57: 杨学莹 | C57: 2331020102A55 | D57: 小学 | E57: 语文 | F57: 65.5 | G57: 50% | H57: 81.33 | I57: 50% | J57: 73.42 | K57: 53 | L57: 否
A58: 55 | B58: 安艳 | C58: 2331020102A68 | D58: 小学 | E58: 语文 | F58: 63.5 | G58: 50% | H58: 83.33 | I58: 50% | J58: 73.42 | K58: 53 | L58: 否
A59: 56 | B59: 何龙欢 | C59: 2331020102A57 | D59: 小学 | E59: 语文 | F59: 65 | G59: 50% | H59: 81.67 | I59: 50% | J59: 73.34 | K59: 56 | L59: 否
A60: 57 | B60: 文珍珍 | C60: 2331020102A61 | D60: 小学 | E60: 语文 | F60: 65 | G60: 50% | H60: 81.67 | I60: 50% | J60: 73.34 | K60: 56 | L60: 否
A61: 58 | B61: 欧仁胜 | C61: 2331020102A73 | D61: 小学 | E61: 语文 | F61: 63 | G61: 50% | H61: 83.67 | I61: 50% | J61: 73.34 | K61: 56 | L61: 否
A62: 59 | B62: 龙华莲 | C62: 2331020102A47 | D62: 小学 | E62: 语文 | F62: 66 | G62: 50% | H62: 80.33 | I62: 50% | J62: 73.17 | K62: 59 | L62: 否
A63: 60 | B63: 李岸芋 | C63: 2331020102A51 | D63: 小学 | E63: 语文 | F63: 65.5 | G63: 50% | H63: 80.67 | I63: 50% | J63: 73.09 | K63: 60 | L63: 否
A64: 61 | B64: 王丹 | C64: 2331020102A59 | D64: 小学 | E64: 语文 | F64: 65 | G64: 50% | H64: 81 | I64: 50% | J64: 73.00 | K64: 61 | L64: 否
A65: 62 | B65: 费美菊 | C65: 2331020102A49 | D65: 小学 | E65: 语文 | F65: 65.5 | G65: 50% | H65: 80.33 | I65: 50% | J65: 72.92 | K65: 62 | L65: 否
A66: 63 | B66: 王吉宁 | C66: 2331020102A65 | D66: 小学 | E66: 语文 | F66: 64 | G66: 50% | H66: 81.33 | I66: 50% | J66: 72.67 | K66: 63 | L66: 否
A67: 64 | B67: 钟永丽 | C67: 2331020102A63 | D67: 小学 | E67: 语文 | F67: 64.5 | G67: 50% | H67: 80.33 | I67: 50% | J67: 72.42 | K67: 64 | L67: 否
A68: 65 | B68: 周育洁 | C68: 2331020102A71 | D68: 小学 | E68: 语文 | F68: 63.5 | G68: 50% | H68: 80 | I68: 50% | J68: =F68*G68+H68*I68 -> 71.75 | K68: 65 | L68: 否
A69: 66 | B69: 石锦珍 | C69: 2331020102A78 | D69: 小学 | E69: 语文 | F69: 63 | G69: 50% | H69: 80 | I69: 50% | J69: 71.50 | K69: 66 | L69: 否
A70: 67 | B70: 田霞 | C70: 2331020102A76 | D70: 小学 | E70: 语文 | F70: 63 | G70: 50% | H70: 79.67 | I70: 50% | J70: 71.34 | K70: 67 | L70: 否
A71: 68 | B71: 杨天光 | C71: 2331020102A69 | D71: 小学 | E71: 语文 | F71: 63.5 | G71: 50% | H71: 78.67 | I71: 50% | J71: 71.09 | K71: 68 | L71: 否
A72: 69 | B72: 潘林诗 | C72: 2331020102A77 | D72: 小学 | E72: 语文 | F72: 63 | G72: 50% | H72: 76.67 | I72: 50% | J72: 69.84 | K72: 69 | L72: 否
A73: 70 | B73: 朱书平 | C73: 2331020102A56 | D73: 小学 | E73: 语文 | F73: 65 | G73: 50% | H73: 71.67 | I73: 50% | J73: 68.34 | K73: 70 | L73: 否
A74: 71 | B74: 王廷燕 | C74: 2331020102A41 | D74: 小学 | E74: 语文 | F74: 66.5 | G74: 50% | H74: 缺考 | I74: —— | J74: —— | K74: —— | L74: 否
A75: 72 | B75: 陈丝丝 | C75: 2331020102A53 | D75: 小学 | E75: 语文 | F75: 65.5 | G75: 50% | H75: 缺考 | I75: —— | J75: —— | K75: —— | L75: 否
A76: 73 | B76: 吴巧凤 | C76: 2331020102A54 | D76: 小学 | E76: 语文 | F76: 65.5 | G76: 50% | H76: 缺考 | I76: —— | J76: —— | K76: —— | L76: 否
A77: 74 | B77: 杨晓芳 | C77: 2331020102A60 | D77: 小学 | E77: 语文 | F77: 65 | G77: 50% | H77: 缺考 | I77: —— | J77: —— | K77: —— | L77: 否
A78: 75 | B78: 龙颜 | C78: 2331020102A70 | D78: 小学 | E78: 语文 | F78: 63.5 | G78: 50% | H78: 缺考 | I78: —— | J78: —— | K78: —— | L78: 否
A79: 76 | B79: 石琼 | C79: 2331020102A72 | D79: 小学 | E79: 语文 | F79: 63 | G79: 50% | H79: 缺考 | I79: —— | J79: —— | K79: —— | L79: 否
A80: 77 | B80: 胡先洁 | C80: 2331020102A74 | D80: 小学 | E80: 语文 | F80: 63 | G80: 50% | H80: 缺考 | I80: —— | J80: —— | K80: —— | L80: 否
A81: 78 | B81: 石欢欢 | C81: 2331020102A75 | D81: 小学 | E81: 语文 | F81: 63 | G81: 50% | H81: 缺考 | I81: —— | J81: —— | K81: —— | L81: 否
A82: 79 | B82: 杨晓艺 | C82: 2331020319A01 | D82: 小学 | E82: 英语 | F82: 81 | G82: 50% | H82: 79 | I82: 50% | J82: =F82*G82+H82*I82 -> 80.00 | K82: =RANK(J82,$J$82:$J$160) -> 1 | L82: 是
A83: 80 | B83: 黄小燕 | C83: 2331020319A03 | D83: 小学 | E83: 英语 | F83: 79 | G83: 50% | H83: 78.83 | I83: 50% | J83: 78.92 | K83: =RANK(J83,$J$82:$J$160) -> 2 | L83: 是
A84: 81 | B84: 王涛 | C84: 2331020319A05 | D84: 小学 | E84: 英语 | F84: 79 | G84: 50% | H84: 78.67 | I84: 50% | J84: 78.84 | K84: 3 | L84: 是
A85: 82 | B85: 杨丽 | C85: 2331020319A04 | D85: 小学 | E85: 英语 | F85: 79 | G85: 50% | H85: 78.5 | I85: 50% | J85: 78.75 | K85: 4 | L85: 是
A86: 83 | B86: 杨炼 | C86: 2331020319A02 | D86: 小学 | E86: 英语 | F86: 79.5 | G86: 50% | H86: 76.5 | I86: 50% | J86: 78.00 | K86: 5 | L86: 是
A87: 84 | B87: 陆帮霞 | C87: 2331020319A09 | D87: 小学 | E87: 英语 | F87: 72.5 | G87: 50% | H87: 81.67 | I87: 50% | J87: 77.09 | K87: 6 | L87: 是
A88: 85 | B88: 白丽华 | C88: 2331020319A07 | D88: 小学 | E88: 英语 | F88: 74.5 | G88: 50% | H88: 79 | I88: 50% | J88: 76.75 | K88: 7 | L88: 是
A89: 86 | B89: 杨连鑫 | C89: 2331020319A08 | D89: 小学 | E89: 英语 | F89: 73 | G89: 50% | H89: 80.33 | I89: 50% | J89: 76.67 | K89: 8 | L89: 是
A90: 87 | B90: 杨荔 | C90: 2331020319A06 | D90: 小学 | E90: 英语 | F90: 75 | G90: 50% | H90: 77.33 | I90: 50% | J90: 76.17 | K90: 9 | L90: 是
A91: 88 | B91: 谭沙 | C91: 2331020319A33 | D91: 小学 | E91: 英语 | F91: 67 | G91: 50% | H91: 84.67 | I91: 50% | J91: 75.84 | K91: 10 | L91: 是
A92: 89 | B92: 张雪 | C92: 2331020319A40 | D92: 小学 | E92: 英语 | F92: 65.5 | G92: 50% | H92: 85.17 | I92: 50% | J92: 75.34 | K92: 11 | L92: 是
A93: 90 | B93: 李望 | C93: 2331020319A16 | D93: 小学 | E93: 英语 | F93: 70 | G93: 50% | H93: 79.83 | I93: 50% | J93: 74.92 | K93: 12 | L93: 是
A94: 91 | B94: 李荣翠 | C94: 2331020319A11 | D94: 小学 | E94: 英语 | F94: 72 | G94: 50% | H94: 77.33 | I94: 50% | J94: 74.67 | K94: 13 | L94: 是
A95: 92 | B95: 熊建梅 | C95: 2331020319A13 | D95: 小学 | E95: 英语 | F95: 71 | G95: 50% | H95: 78.33 | I95: 50% | J95: 74.67 | K95: 13 | L95: 是
A96: 93 | B96: 龙婷婷 | C96: 2331020319A34 | D96: 小学 | E96: 英语 | F96: 66.5 | G96: 50% | H96: 82.33 | I96: 50% | J96: 74.42 | K96: 15 | L96: 是
A97: 94 | B97: 蒋雨蓉 | C97: 2331020319A25 | D97: 小学 | E97: 英语 | F97: 68.5 | G97: 50% | H97: 80.17 | I97: 50% | J97: 74.34 | K97: 16 | L97: 是
A98: 95 | B98: 吴玉情 | C98: 2331020319A20 | D98: 小学 | E98: 英语 | F98: 69.5 | G98: 50% | H98: 78.67 | I98: 50% | J98: 74.09 | K98: 17 | L98: 是
A99: 96 | B99: 张进 | C99: 2331020319A46 | D99: 小学 | E99: 英语 | F99: 63.5 | G99: 50% | H99: 84.5 | I99: 50% | J99: 74.00 | K99: 18 | L99: 是
A100: 97 | B100: 吴小红 | C100: 2331020319A12 | D100: 小学 | E100: 英语 | F100: 71.5 | G100: 50% | H100: 76.17 | I100: 50% | J100: 73.84 | K100: 19 | L100: 是
A101: 98 | B101: 晚梅 | C101: 2331020319A18 | D101: 小学 | E101: 英语 | F101: 69.5 | G101: 50% | H101: 78.17 | I101: 50% | J101: 73.84 | K101: 19 | L101: 是
A102: 99 | B102: 杨小珍 | C102: 2331020319A21 | D102: 小学 | E102: 英语 | F102: 69.5 | G102: 50% | H102: 77.67 | I102: 50% | J102: 73.59 | K102: 21 | L102: 是
A103: 100 | B103: 杨丽 | C103: 2331020319A14 | D103: 小学 | E103: 英语 | F103: 70.5 | G103: 50% | H103: 76 | I103: 50% | J103: 73.25 | K103: 22 | L103: 是
A104: 101 | B104: 魏淑艳 | C104: 2331020319A19 | D104: 小学 | E104: 英语 | F104: 69.5 | G104: 50% | H104: 77 | I104: 50% | J104: 73.25 | K104: 22 | L104: 是
A105: 102 | B105: 王晓冬 | C105: 2331020319A26 | D105: 小学 | E105: 英语 | F105: 68 | G105: 50% | H105: 78.17 | I105: 50% | J105: 73.09 | K105: 24 | L105: 是
A106: 103 | B106: 陆蕾 | C106: 2331020319A61 | D106: 小学 | E106: 英语 | F106: 59.5 | G106: 50% | H106: 86.33 | I106: 50% | J106: 72.92 | K106: 25 | L106: 是
A107: 104 | B107: 向红 | C107: 2331020319A42 | D107: 小学 | E107: 英语 | F107: 65 | G107: 50% | H107: 80.5 | I107: 50% | J107: 72.75 | K107: 26 | L107: 否
A108: 105 | B108: 陈玉霞 | C108: 2331020319A43 | D108: 小学 | E108: 英语 | F108: 65 | G108: 50% | H108: 80.33 | I108: 50% | J108: 72.67 | K108: 27 | L108: 否
A109: 106 | B109: 周红梅 | C109: 2331020319A27 | D109: 小学 | E109: 英语 | F109: 68 | G109: 50% | H109: 77.17 | I109: 50% | J109: 72.59 | K109: 28 | L109: 否
A110: 107 | B110: 杨江会 | C110: 2331020319A29 | D110: 小学 | E110: 英语 | F110: 67.5 | G110: 50% | H110: 77.67 | I110: 50% | J110: 72.59 | K110: 28 | L110: 否
A111: 108 | B111: 白卜丹 | C111: 2331020319A54 | D111: 小学 | E111: 英语 | F111: 61.5 | G111: 50% | H111: 83.33 | I111: 50% | J111: 72.42 | K111: 30 | L111: 否
A112: 109 | B112: 张荣 | C112: 2331020319A22 | D112: 小学 | E112: 英语 | F112: 68.5 | G112: 50% | H112: 75.67 | I112: 50% | J112: 72.09 | K112: 31 | L112: 否
A113: 110 | B113: 封传舒 | C113: 2331020319A57 | D113: 小学 | E113: 英语 | F113: 60.5 | G113: 50% | H113: 83.17 | I113: 50% | J113: 71.84 | K113: 32 | L113: 否
A114: 111 | B114: 杨英 | C114: 2331020319A23 | D114: 小学 | E114: 英语 | F114: 68.5 | G114: 50% | H114: 75 | I114: 50% | J114: 71.75 | K114: 33 | L114: 否
A115: 112 | B115: 杨利群 | C115: 2331020319A30 | D115: 小学 | E115: 英语 | F115: 67.5 | G115: 50% | H115: 75.67 | I115: 50% | J115: 71.59 | K115: =RANK(J115,$J$82:$J$160) -> 34 | L115: 否
A116: 113 | B116: 杨芸菡 | C116: 2331020319A44 | D116: 小学 | E116: 英语 | F116: 64 | G116: 50% | H116: 78.67 | I116: 50% | J116: 71.34 | K116: 35 | L116: 否
A117: 114 | B117: 苏晓丹 | C117: 2331020319A36 | D117: 小学 | E117: 英语 | F117: 66 | G117: 50% | H117: 76.33 | I117: 50% | J117: 71.17 | K117: 36 | L117: 否
A118: 115 | B118: 潘红 | C118: 2331020319A38 | D118: 小学 | E118: 英语 | F118: 66 | G118: 50% | H118: 76.33 | I118: 50% | J118: 71.17 | K118: 36 | L118: 否
A119: 116 | B119: 宋妍 | C119: 2331020319A17 | D119: 小学 | E119: 英语 | F119: 69.5 | G119: 50% | H119: 72.67 | I119: 50% | J119: 71.09 | K119: 38 | L119: 否
A120: 117 | B120: 王琼艳 | C120: 2331020319A32 | D120: 小学 | E120: 英语 | F120: 67 | G120: 50% | H120: 75.17 | I120: 50% | J120: 71.09 | K120: 38 | L120: 否
A121: 118 | B121: 蒲超美 | C121: 2331020319A15 | D121: 小学 | E121: 英语 | F121: 70 | G121: 50% | H121: 71.67 | I121: 50% | J121: 70.84 | K121: 40 | L121: 否
A122: 119 | B122: 张园园 | C122: 2331020319A24 | D122: 小学 | E122: 英语 | F122: 68.5 | G122: 50% | H122: 73 | I122: 50% | J122: 70.75 | K122: 41 | L122: 否
A123: 120 | B123: 罗恩英 | C123: 2331020319A31 | D123: 小学 | E123: 英语 | F123: 67 | G123: 50% | H123: 74.33 | I123: 50% | J123: 70.67 | K123: 42 | L123: 否
A124: 121 | B124: 杨婷 | C124: 2331020319A28 | D124: 小学 | E124: 英语 | F124: 67.5 | G124: 50% | H124: 73.5 | I124: 50% | J124: 70.50 | K124: 43 | L124: 否
A125: 122 | B125: 周越 | C125: 2331020319A67 | D125: 小学 | E125: 英语 | F125: 58 | G125: 50% | H125: 83 | I125: 50% | J125: 70.50 | K125: 43 | L125: 否
A126: 123 | B126: 熊桃花 | C126: 2331020319A45 | D126: 小学 | E126: 英语 | F126: 64 | G126: 50% | H126: 76.83 | I126: 50% | J126: 70.42 | K126: 45 | L126: 否
A127: 124 | B127: 谭诚 | C127: 2331020319A35 | D127: 小学 | E127: 英语 | F127: 66.5 | G127: 50% | H127: 73.67 | I127: 50% | J127: 70.09 | K127: 46 | L127: 否
A128: 125 | B128: 王欢欢 | C128: 2331020319A51 | D128: 小学 | E128: 英语 | F128: 61.5 | G128: 50% | H128: 78.33 | I128: 50% | J128: 69.92 | K128: 47 | L128: 否
A129: 126 | B129: 鲁双艳 | C129: 2331020319A39 | D129: 小学 | E129: 英语 | F129: 66 | G129: 50% | H129: 72.5 | I129: 50% | J129: 69.25 | K129: 48 | L129: 否
A130: 127 | B130: 杨婷婷 | C130: 2331020319A59 | D130: 小学 | E130: 英语 | F130: 60 | G130: 50% | H130: 78.33 | I130: 50% | J130: 69.17 | K130: 49 | L130: 否
A131: 128 | B131: 黄美玲 | C131: 2331020319A37 | D131: 小学 | E131: 英语 | F131: 66 | G131: 50% | H131: 71.33 | I131: 50% | J131: 68.67 | K131: 50 | L131: 否
A132: 129 | B132: 姜鲜花 | C132: 2331020319A49 | D132: 小学 | E132: 英语 | F132: 62 | G132: 50% | H132: 75.17 | I132: 50% | J132: 68.59 | K132: 51 | L132: 否
A133: 130 | B133: 吴义祝 | C133: 2331020319A68 | D133: 小学 | E133: 英语 | F133: 57.5 | G133: 50% | H133: 79.5 | I133: 50% | J133: 68.50 | K133: 52 | L133: 否
A134: 131 | B134: 李江艳 | C134: 2331020319A65 | D134: 小学 | E134: 英语 | F134: 58.5 | G134: 50% | H134: 78 | I134: 50% | J134: 68.25 | K134: 53 | L134: 否
A135: 132 | B135: 田翠平 | C135: 2331020319A56 | D135: 小学 | E135: 英语 | F135: 61 | G135: 50% | H135: 75.33 | I135: 50% | J135: 68.17 | K135: 54 | L135: 否
A136: 133 | B136: 石登菊 | C136: 2331020319A71 | D136: 小学 | E136: 英语 | F136: 57 | G136: 50% | H136: 79.17 | I136: 50% | J136: 68.09 | K136: 55 | L136: 否
A137: 134 | B137: 姚婷婷 | C137: 2331020319A66 | D137: 小学 | E137: 英语 | F137: 58 | G137: 50% | H137: 77.83 | I137: 50% | J137: 67.92 | K137: 56 | L137: 否
A138: 135 | B138: 谭秋玲 | C138: 2331020319A50 | D138: 小学 | E138: 英语 | F138: 62 | G138: 50% | H138: 73.5 | I138: 50% | J138: 67.75 | K138: 57 | L138: 否
A139: 136 | B139: 苏莉 | C139: 2331020319A60 | D139: 小学 | E139: 英语 | F139: 59.5 | G139: 50% | H139: 73.67 | I139: 50% | J139: 66.59 | K139: 58 | L139: 否
A140: 137 | B140: 邓博雅 | C140: 2331020319A48 | D140: 小学 | E140: 英语 | F140: 62.5 | G140: 50% | H140: 68.83 | I140: 50% | J140: 65.67 | K140: 59 | L140: 否
A141: 138 | B141: 吴容霞 | C141: 2331020319A72 | D141: 小学 | E141: 英语 | F141: 57 | G141: 50% | H141: 71 | I141: 50% | J141: 64.00 | K141: 60 | L141: 否
A142: 139 | B142: 杨红玲 | C142: 2331020319A53 | D142: 小学 | E142: 英语 | F142: 61.5 | G142: 50% | H142: 66.33 | I142: 50% | J142: 63.92 | K142: 61 | L142: 否
A143: 140 | B143: 张婵婵 | C143: 2331020319A55 | D143: 小学 | E143: 英语 | F143: 61.5 | G143: 50% | H143: 66 | I143: 50% | J143: 63.75 | K143: 62 | L143: 否
A144: 141 | B144: 潘玉莲 | C144: 2331020319A63 | D144: 小学 | E144: 英语 | F144: 59 | G144: 50% | H144: 66 | I144: 50% | J144: 62.50 | K144: 63 | L144: 否
A145: 142 | B145: 梁艳华 | C145: 2331020319A10 | D145: 小学 | E145: 英语 | F145: 72.5 | G145: 50% | H145: 缺考 | I145: —— | J145: —— | K145: —— | L145: 否
A146: 143 | B146: 杨戴伶 | C146: 2331020319A41 | D146: 小学 | E146: 英语 | F146: 65.5 | G146: 50% | H146: 缺考 | I146: —— | J146: —— | K146: —— | L146: 否
A147: 144 | B147: 肖子梅 | C147: 2331020319A47 | D147: 小学 | E147: 英语 | F147: 62.5 | G147: 50% | H147: 缺考 | I147: —— | J147: —— | K147: —— | L147: 否
A148: 145 | B148: 杨朝飞 | C148: 2331020319A52 | D148: 小学 | E148: 英语 | F148: 61.5 | G148: 50% | H148: 缺考 | I148: —— | J148: —— | K148: —— | L148: 否
A149: 146 | B149: 曾山珊 | C149: 2331020319A58 | D149: 小学 | E149: 英语 | F149: 60.5 | G149: 50% | H149: 缺考 | I149: —— | J149: —— | K149: —— | L149: 否
A150: 147 | B150: 陈玲巧 | C150: 2331020319A62 | D150: 小学 | E150: 英语 | F150: 59 | G150: 50% | H150: 缺考 | I150: —— | J150: —— | K150: —— | L150: 否
A151: 148 | B151: 熊姣 | C151: 2331020319A64 | D151: 小学 | E151: 英语 | F151: 59 | G151: 50% | H151: 缺考 | I151: —— | J151: —— | K151: —— | L151: 否
A152: 149 | B152: 骆红 | C152: 2331020319A69 | D152: 小学 | E152: 英语 | F152: 57.5 | G152: 50% | H152: 缺考 | I152: —— | J152: —— | K152: —— | L152: 否
A153: 150 | B153: 陈依婷 | C153: 2331020319A70 | D153: 小学 | E153: 英语 | F153: 57.5 | G153: 50% | H153: 缺考 | I153: —— | J153: —— | K153: —— | L153: 否
A154: 151 | B154: 孔长琴 | C154: 2331020319A73 | D154: 小学 | E154: 英语 | F154: 57 | G154: 50% | H154: 缺考 | I154: —— | J154: —— | K154: —— | L154: 否
A155: 152 | B155: 魏冰 | C155: 2331020319A74 | D155: 小学 | E155: 英语 | F155: 57 | G155: 50% | H155: 缺考 | I155: —— | J155: —— | K155: —— | L155: 否
A156: 153 | B156: 王应和 | C156: 2331020319A75 | D156: 小学 | E156: 英语 | F156: 56.5 | G156: 50% | H156: 缺考 | I156: —— | J156: —— | K156: —— | L156: 否
A157: 154 | B157: 张熠 | C157: 2331020319A76 | D157: 小学 | E157: 英语 | F157: 56.5 | G157: 50% | H157: 缺考 | I157: —— | J157: —— | K157: —— | L157: 否
A158: 155 | B158: 任乾芳 | C158: 2331020319A77 | D158: 小学 | E158: 英语 | F158: 56.5 | G158: 50% | H158: 缺考 | I158: —— | J158: —— | K158: —— | L158: 否
A159: 156 | B159: 王秀英 | C159: 2331020319A78 | D159: 小学 | E159: 英语 | F159: 56.5 | G159: 50% | H159: 缺考 | I159: —— | J159: —— | K159: —— | L159: 否
A160: 157 | B160: 周玲玲 | C160: 2331020319A79 | D160: 小学 | E160: 英语 | F160: 56.5 | G160: 50% | H160: 缺考 | I160: —— | J160: —— | K160: —— | L160: 否
A161: 158 | B161: 张晶 | C161: 2331021036B29 | D161: 小学 | E161: 音乐 | F161: 80.5 | G161: 50% | H161: 90.3 | I161: 50% | J161: =F161*G161+H161*I161 -> 85.40 | K161: =RANK(J161,$J$161:$J$177) -> 1 | L161: 是
A162: 159 | B162: 吴珍玉 | C162: 2331021036B30 | D162: 小学 | E162: 音乐 | F162: 80 | G162: 50% | H162: 88.58 | I162: 50% | J162: 84.29 | K162: =RANK(J162,$J$161:$J$177) -> 2 | L162: 是
A163: 160 | B163: 吴宇涵 | C163: 2331021036B31 | D163: 小学 | E163: 音乐 | F163: 73 | G163: 50% | H163: 88.96 | I163: 50% | J163: 80.98 | K163: 3 | L163: 是
A164: 161 | B164: 刘伶俐 | C164: 2331021036B35 | D164: 小学 | E164: 音乐 | F164: 66.5 | G164: 50% | H164: 92.15 | I164: 50% | J164: 79.33 | K164: 4 | L164: 是
A165: 162 | B165: 吴巧兰 | C165: 2331021036B32 | D165: 小学 | E165: 音乐 | F165: 69 | G165: 50% | H165: 88.52 | I165: 50% | J165: 78.76 | K165: 5 | L165: 是
A166: 163 | B166: 刘湘 | C166: 2331021036B34 | D166: 小学 | E166: 音乐 | F166: 67 | G166: 50% | H166: 88.89 | I166: 50% | J166: 77.95 | K166: 6 | L166: 否
A167: 164 | B167: 田曼同 | C167: 2331021036B36 | D167: 小学 | E167: 音乐 | F167: 66 | G167: 50% | H167: 89.64 | I167: 50% | J167: 77.82 | K167: 7 | L167: 否
A168: 165 | B168: 文义英 | C168: 2331021036B33 | D168: 小学 | E168: 音乐 | F168: 68 | G168: 50% | H168: 85.62 | I168: 50% | J168: 76.81 | K168: 8 | L168: 否
A169: 166 | B169: 吴焕冬 | C169: 2331021036B37 | D169: 小学 | E169: 音乐 | F169: 65.5 | G169: 50% | H169: 88.03 | I169: 50% | J169: 76.77 | K169: 9 | L169: 否
A170: 167 | B170: 李丹 | C170: 2331021036B38 | D170: 小学 | E170: 音乐 | F170: 65 | G170: 50% | H170: 87.93 | I170: 50% | J170: 76.47 | K170: 10 | L170: 否
A171: 168 | B171: 罗先勇 | C171: 2331021036B40 | D171: 小学 | E171: 音乐 | F171: 64 | G171: 50% | H171: 88.51 | I171: 50% | J171: 76.26 | K171: 11 | L171: 否
A172: 169 | B172: 石庆舒 | C172: 2331021036B43 | D172: 小学 | E172: 音乐 | F172: 62.5 | G172: 50% | H172: 89.19 | I172: 50% | J172: 75.85 | K172: 12 | L172: 否
A173: 170 | B173: 廖婉蓉 | C173: 2331021036B41 | D173: 小学 | E173: 音乐 | F173: 63.5 | G173: 50% | H173: 86.57 | I173: 50% | J173: 75.04 | K173: 13 | L173: 否
A174: 171 | B174: 陆梨书 | C174: 2331021036B44 | D174: 小学 | E174: 音乐 | F174: 62.5 | G174: 50% | H174: 87.37 | I174: 50% | J174: 74.94 | K174: 14 | L174: 否
A175: 172 | B175: 龙园园 | C175: 2331021036B39 | D175: 小学 | E175: 音乐 | F175: 64.5 | G175: 50% | H175: 缺考 | I175: —— | J175: —— | K175: —— | L175: 否
A176: 173 | B176: 代天惠 | C176: 2331021036B42 | D176: 小学 | E176: 音乐 | F176: 63 | G176: 50% | H176: 缺考 | I176: —— | J176: —— | K176: —— | L176: 否
A177: 174 | B177: 刘灵芝 | C177: 2331021036B45 | D177: 小学 | E177: 音乐 | F177: 62.5 | G177: 50% | H177: 缺考 | I177: —— | J177: —— | K177: —— | L177: 否
A178: 175 | B178: 王远婷 | C178: 2331021344A01 | D178: 小学 | E178: 信息科技 | F178: 74 | G178: 50% | H178: 83.63 | I178: 50% | J178: =F178*G178+H178*I178 -> 78.82 | K178: =RANK(J178,$J$178:$J$187) -> 1 | L178: 是
A179: 176 | B179: 杨仁燕 | C179: 2331021344A04 | D179: 小学 | E179: 信息科技 | F179: 68 | G179: 50% | H179: 82.12 | I179: 50% | J179: 75.06 | K179: =RANK(J179,$J$178:$J$187) -> 2 | L179: 是
A180: 177 | B180: 王芳琼 | C180: 2331021344A03 | D180: 小学 | E180: 信息科技 | F180: 68.5 | G180: 50% | H180: 80.73 | I180: 50% | J180: 74.62 | K180: 3 | L180: 是
A181: 178 | B181: 李林娇 | C181: 2331021344A05 | D181: 小学 | E181: 信息科技 | F181: 66.5 | G181: 50% | H181: 82.36 | I181: 50% | J181: 74.43 | K181: 4 | L181: 否
A182: 179 | B182: 徐琴 | C182: 2331021344A06 | D182: 小学 | E182: 信息科技 | F182: 66 | G182: 50% | H182: 82.64 | I182: 50% | J182: 74.32 | K182: 5 | L182: 否
A183: 180 | B183: 潘归成 | C183: 2331021344A02 | D183: 小学 | E183: 信息科技 | F183: 70 | G183: 50% | H183: 78.04 | I183: 50% | J183: 74.02 | K183: 6 | L183: 否
A184: 181 | B184: 杨昭群 | C184: 2331021344A07 | D184: 小学 | E184: 信息科技 | F184: 65.5 | G184: 50% | H184: 81.12 | I184: 50% | J184: 73.31 | K184: 7 | L184: 否
A185: 182 | B185: 吴代丹 | C185: 2331021344A08 | D185: 小学 | E185: 信息科技 | F185: 64.5 | G185: 50% | H185: 79.99 | I185: 50% | J185: 72.25 | K185: 8 | L185: 否
A186: 183 | B186: 杨俊嵩 | C186: 2331021344A09 | D186: 小学 | E186: 信息科技 | F186: 63 | G186: 50% | H186: 78.77 | I186: 50% | J186: 70.89 | K186: 9 | L186: 否
A187: 184 | B187: 罗玉芳 | C187: 2331021344A10 | D187: 小学 | E187: 信息科技 | F187: 63 | G187: 50% | H187: 78.72 | I187: 50% | J187: 70.86 | K187: 10 | L187: 否
A188: 185 | B188: 罗智林 | C188: 2331021139B39 | D188: 小学 | E188: 体育 | F188: 61.5 | G188: 50% | H188: 85.1 | I188: 50% | J188: 73.30 | K188: =RANK(J188,$J$188:$J$199) -> 1 | L188: 是
A189: 186 | B189: 肖辉煌 | C189: 2331021139B38 | D189: 小学 | E189: 体育 | F189: 62 | G189: 50% | H189: 83.88 | I189: 50% | J189: 72.94 | K189: =RANK(J189,$J$188:$J$199) -> 2 | L189: 是
A190: 187 | B190: 吴美欢 | C190: 2331021139B41 | D190: 小学 | E190: 体育 | F190: 59 | G190: 50% | H190: 84.57 | I190: 50% | J190: 71.79 | K190: 3 | L190: 是
A191: 188 | B191: 粟银鹏 | C191: 2331021139B40 | D191: 小学 | E191: 体育 | F191: 61.5 | G191: 50% | H191: 81.68 | I191: 50% | J191: 71.59 | K191: 4 | L191: 是
A192: 189 | B192: 吴斌全 | C192: 2331021139B42 | D192: 小学 | E192: 体育 | F192: 58.5 | G192: 50% | H192: 83.6 | I192: 50% | J192: 71.05 | K192: 5 | L192: 否
A193: 190 | B193: 辜以科 | C193: 2331021139B44 | D193: 小学 | E193: 体育 | F193: 58 | G193: 50% | H193: 83.38 | I193: 50% | J193: 70.69 | K193: 6 | L193: 否
A194: 191 | B194: 卢星龙 | C194: 2331021139B47 | D194: 小学 | E194: 体育 | F194: 56.5 | G194: 50% | H194: 84.63 | I194: 50% | J194: 70.57 | K194: 7 | L194: 否
A195: 192 | B195: 王晓斌 | C195: 2331021139B46 | D195: 小学 | E195: 体育 | F195: 57 | G195: 50% | H195: 83.19 | I195: 50% | J195: 70.10 | K195: 8 | L195: 否
A196: 193 | B196: 杨洪叶 | C196: 2331021139B43 | D196: 小学 | E196: 体育 | F196: 58.5 | G196: 50% | H196: 81.04 | I196: 50% | J196: 69.77 | K196: 9 | L196: 否
A197: 194 | B197: 石倩 | C197: 2331021139B49 | D197: 小学 | E197: 体育 | F197: 54.5 | G197: 50% | H197: 83.87 | I197: 50% | J197: 69.19 | K197: 10 | L197: 否
A198: 195 | B198: 石旭豪 | C198: 2331021139B45 | D198: 小学 | E198: 体育 | F198: 57.5 | G198: 50% | H198: 77.28 | I198: 50% | J198: 67.39 | K198: 11 | L198: 否
A199: 196 | B199: 刘伟 | C199: 2331021139B48 | D199: 小学 | E199: 体育 | F199: 55 | G199: 50% | H199: 78.26 | I199: 50% | J199: 66.63 | K199: 12 | L199: 否
A200: 197 | B200: 熊淋淋 | C200: 2331020212A03 | D200: 小学 | E200: 数学 | F200: 82.5 | G200: 50% | H200: 89.1 | I200: 50% | J200: 85.80 | K200: =RANK(J200,$J$200:$J$232) -> 1 | L200: 是
... 149 more rows
